{"text_format":"1","workbook":"xlsx","n_sheets":7,"sheets":["Content","Finds","Cachetyp_Dgr","Cachetyp_prozent","D","T","Cachetyp_tab"],"not_rendered":{"charts":8,"images":3,"macros":1,"external_links":0,"defined_names":1,"comments":0,"pivot_tables":0},"unopened":[{"sheet":"Cachetyp_Dgr","index":2,"reason":"not_a_worksheet"},{"sheet":"Cachetyp_prozent","index":3,"reason":"not_a_worksheet"},{"sheet":"D","index":4,"reason":"not_a_worksheet"},{"sheet":"T","index":5,"reason":"not_a_worksheet"}],"bounds":{"document_bytes":16777216,"sheet_cells":100000,"rows_first":2000,"rows_last":500,"rows_between":2000,"halvings":0,"cell_chars":16384,"cell_head_chars":4096},"cells_cut":0,"cells_raw":0,"read":"whole","date_system":"1900"}

{"sheet":"Content","index":0,"n_rows":28,"n_cols":1,"rows_kept":28,"cut":false,"hidden":false,"merged":[]}
["© Thomas Kühn"]
[]
[]
[]
["My finds on Geocaching.com"]
[]
[]
[]
[]
["Use this Excel file to show all of your finds in an Excel table."]
["You need the MyFinds pocket query which you can start as a premium member every three days"]
["If the PQ is ready, download it on your  local computer and decompress."]
["After that is done, click on \"Choose file and import\""]
[]
[]
[]
[]
[]
[]
[]
[]
[]
[]
[]
["This tool is for free. If you like it, you can donate a little bit if you want."]
["Donations please via PayPal on t-kuehn@web.de"]
[]
["Any questions, remarks, critics? Please contact me t-kuehn@web.de"]

{"sheet":"Finds","index":1,"n_rows":1,"n_cols":19,"rows_kept":1,"cut":false,"hidden":false,"merged":[]}
["Log ID","GC Code","GC Name","Difficulty","Terrain","Latitude","Longitude","Koords","Type","Container","Country","Part of Country","Hint","Logdate","Logdate complete","Publish","Enabled","Archived","Own Log"]

{"sheet":"Cachetyp_tab","index":6,"n_rows":35,"n_cols":3,"rows_kept":35,"cut":false,"hidden":true,"merged":[]}
["Type","Typ"]
["Cache In Trash Out Event","CITO",{"$f":"COUNTIFS(Finds!I:I,A2)","v":0}]
["Earthcache","Earthcache",{"$f":"COUNTIFS(Finds!I:I,A3)","v":0}]
["Event Cache","Event",{"$f":"COUNTIFS(Finds!I:I,A4)","v":0}]
["GPS Adventures Exhibit","GPS Adventures Exhibit",{"$f":"COUNTIFS(Finds!I:I,A5)","v":0}]
["Letterbox Hybrid","Letterbox",{"$f":"COUNTIFS(Finds!I:I,A6)","v":0}]
["Mega-Event Cache","MEGA",{"$f":"COUNTIFS(Finds!I:I,A7)","v":0}]
["Multi-cache","Multi",{"$f":"COUNTIFS(Finds!I:I,A8)","v":0}]
["Traditional Cache","Tradi",{"$f":"COUNTIFS(Finds!I:I,A9)","v":0}]
["Unknown Cache","Mystery",{"$f":"COUNTIFS(Finds!I:I,A10)","v":0}]
["Virtual Cache","Virtual",{"$f":"COUNTIFS(Finds!I:I,A11)","v":0}]
["Webcam Cache","Webcam",{"$f":"COUNTIFS(Finds!I:I,A12)","v":0}]
["Webcam Cache","Wherigo",{"$f":"COUNTIFS(Finds!I:I,A13)","v":0}]
[]
["D-Wertung"]
[1,null,{"$f":"COUNTIFS(Finds!D:D,A16)","v":0}]
[1.5,null,{"$f":"COUNTIFS(Finds!D:D,A17)","v":0}]
[2,null,{"$f":"COUNTIFS(Finds!D:D,A18)","v":0}]
[2.5,null,{"$f":"COUNTIFS(Finds!D:D,A19)","v":0}]
[3,null,{"$f":"COUNTIFS(Finds!D:D,A20)","v":0}]
[3.5,null,{"$f":"COUNTIFS(Finds!D:D,A21)","v":0}]
[4,null,{"$f":"COUNTIFS(Finds!D:D,A22)","v":0}]
[4.5,null,{"$f":"COUNTIFS(Finds!D:D,A23)","v":0}]
[5,null,{"$f":"COUNTIFS(Finds!D:D,A24)","v":0}]
[]
["T-Wertung"]
[1,null,{"$f":"COUNTIFS(Finds!E:E,A27)","v":0}]
[1.5,null,{"$f":"COUNTIFS(Finds!E:E,A28)","v":0}]
[2,null,{"$f":"COUNTIFS(Finds!E:E,A29)","v":0}]
[2.5,null,{"$f":"COUNTIFS(Finds!E:E,A30)","v":0}]
[3,null,{"$f":"COUNTIFS(Finds!E:E,A31)","v":0}]
[3.5,null,{"$f":"COUNTIFS(Finds!E:E,A32)","v":0}]
[4,null,{"$f":"COUNTIFS(Finds!E:E,A33)","v":0}]
[4.5,null,{"$f":"COUNTIFS(Finds!E:E,A34)","v":0}]
[5,null,{"$f":"COUNTIFS(Finds!E:E,A35)","v":0}]